fUSD/lending_fUSD_20250219
["ID","MTS","AMOUNT","RATE_DAILY","PERIOD"]
[353580922,1739933469338,-668.66,0.00016438,2]
[353580923,1739933469348,-500.0,0.00016438,2]
[353580924,1739933469357,-500.0,0.00016438,2]
[353580925,1739933469367,-500.0,0.00016438,2]
[353580926,1739933469377,-1490.53,0.00016438,2]
[353580927,1739933469386,-500.0,0.00016438,2]
[353580928,1739933469395,-500.0,0.00016438,2]
[353580929,1739933469405,-500.0,0.00016438,2]
[353580930,1739933469415,-207.46700089,0.00016438,2]
[353580931,1739933469424,-500.0,0.00016438,2]
[353580932,1739933469433,-500.0,0.00016438,2]
[353580933,1739933469443,-554.74749481,0.00016438,2]
[353580934,1739933469452,-2105.84,0.00016438,2]
[353580935,1739933469465,-500.0,0.00016438,2]
[353580936,1739933469474,-500.0,0.00016438,2]
[353580937,1739933469485,-1253.78,0.00016438,2]
[353580938,1739933469495,-500.0,0.00016438,2]
[353580939,1739933469504,-500.0,0.00016438,2]
[353580940,1739933469514,-500.0,0.00016438,2]
[353580941,1739933469524,-500.0,0.00016438,2]
[353580942,1739933469534,-500.0,0.00016438,2]
[353580943,1739933469543,-500.0,0.00016438,2]
[353580944,1739933469553,-500.0,0.00016438,2]
[353580945,1739933469563,-500.0,0.00016438,2]
[353580946,1739933469572,-500.0,0.00016438,2]
[353580947,1739933469582,-500.0,0.00016438,2]
[353580948,1739933469591,-500.0,0.00016438,2]
[353580949,1739933469600,-730.06,0.00016438,2]
[353580950,1739933469610,-2807.01,0.00016438,2]
[353580951,1739933469619,-500.0,0.00016438,2]
[353580952,1739933469628,-500.0,0.00016438,2]
[353580953,1739933469638,-808.14,0.00016438,2]
[353580954,1739933469647,-500.0,0.00016438,2]
[353580955,1739933469657,-596.0,0.00016438,2]
[353580956,1739933469666,-500.0,0.00016438,2]
[353580957,1739933469676,-500.0,0.00016438,2]
[353580958,1739933469685,-500.0,0.00016438,2]
[353580959,1739933469695,-500.0,0.00016438,2]
[353580960,1739933469705,-500.0,0.00016438,2]
[353580961,1739933469716,-869.76,0.00016438,2]
[353580962,1739933469726,-500.0,0.00016438,2]
[353580963,1739933469735,-500.0,0.00016438,2]
[353580964,1739933469744,-693.39,0.00016438,2]
[353580965,1739933469753,-500.0,0.00016438,2]
[353580966,1739933469763,-6363.51,0.00016438,2]
[353580967,1739933469772,-801.89,0.00016438,2]
[353580968,1739933469781,-1506.62,0.00016438,2]
[353580969,1739933469791,-973.3,0.00016438,2]
[353580970,1739933469800,-500.0,0.00016438,2]
[353580971,1739933469810,-500.0,0.00016438,2]
[353580972,1739933469820,-500.0,0.00016438,2]
[353580973,1739933469830,-500.0,0.00016438,2]
[353580974,1739933469839,-500.0,0.00016438,2]
[353580975,1739933469849,-500.0,0.00016438,2]
[353580976,1739933469859,-501.99277111,0.00016438,2]
[353580977,1739933469869,-500.0,0.00016438,2]
[353580978,1739933469880,-500.0,0.00016438,2]
[353580979,1739933469889,-500.0,0.00016438,2]
[353580980,1739933469898,-500.0,0.00016438,2]
[353580981,1739933469907,-500.0,0.00016438,2]
[353580982,1739933469916,-500.0,0.00016438,2]
[353580983,1739933469926,-500.0,0.00016438,2]
[353580984,1739933469935,-1636.51,0.00016438,2]
[353580985,1739933469944,-500.0,0.00016438,2]
[353580986,1739933469953,-503.80316934,0.00016438,2]
[353580987,1739933469963,-747.59,0.00016438,2]
[353580988,1739933469972,-500.0,0.00016438,2]
[353580989,1739933469982,-500.0,0.00016438,2]
[353580990,1739933469991,-1423.47,0.00016438,2]
[353580991,1739933470001,-500.0,0.00016438,2]
[353580992,1739933470011,-500.0,0.00016438,2]
[353580993,1739933470020,-500.0,0.00016438,2]
[353580994,1739933470030,-500.0,0.00016438,2]
[353580995,1739933470039,-500.0,0.00016438,2]
[353580996,1739933470048,-500.0,0.00016438,2]
[353580997,1739933470057,-1016.24,0.00016438,2]
[353580998,1739933470067,-500.0,0.00016438,2]
[353580999,1739933470076,-500.0,0.00016438,2]
[353581000,1739933470090,-505.3763202,0.00016438,2]
[353581001,1739933470100,-500.0,0.00016438,2]
[353581002,1739933470109,-500.0,0.00016438,2]
[353581003,1739933470119,-500.0,0.00016438,2]
[353581004,1739933470129,-500.0,0.00016438,2]
[353581005,1739933470138,-500.0,0.00016438,2]
[353581006,1739933470147,-500.0,0.00016438,2]
[353581007,1739933470156,-500.0,0.00016438,2]
[353581008,1739933470167,-500.0,0.00016438,2]
[353581009,1739933470177,-500.0,0.00016438,2]
[353581010,1739933470186,-1839.47,0.00016438,2]
[353581011,1739933470196,-500.0,0.00016438,2]
[353581012,1739933470205,-1780.71,0.00016438,2]
[353581013,1739933470216,-500.0,0.00016438,2]
[353581014,1739933470225,-608.56861248,0.00016438,2]
[353581015,1739933470235,-1036.77,0.00016438,2]
[353581016,1739933470244,-2597.48,0.00016438,2]
[353581017,1739933470254,-1814.23,0.00016438,2]
[353581018,1739933470263,-500.63284981,0.00016438,2]
[353581019,1739933470272,-1711.11,0.00016438,2]
[353581020,1739933470282,-507.99,0.00016438,2]
[353581021,1739933470291,-500.0,0.00016438,2]
[353581022,1739933470301,-500.0,0.00016438,2]
[353581023,1739933470310,-500.0,0.00016438,2]
[353581024,1739933470319,-500.0,0.00016438,2]
[353581025,1739933470329,-500.0,0.00016438,2]
[353581026,1739933470338,-500.0,0.00016438,2]
[353581027,1739933470348,-1234.5,0.00016438,2]
[353581028,1739933470357,-500.0,0.00016438,2]
[353581029,1739933470367,-502.60747807,0.00016438,2]
[353581030,1739933470377,-559.11,0.00016438,2]
[353581031,1739933470386,-1002.1,0.00016438,2]
[353581032,1739933470395,-500.0,0.00016438,2]
[353581033,1739933470404,-500.0,0.00016438,2]
[353581034,1739933470413,-831.96,0.00016438,2]
[353581035,1739933470422,-500.0,0.00016438,2]
[353581036,1739933470431,-1271.65,0.00016438,2]
[353581037,1739933470440,-816.65,0.00016438,2]
[353581038,1739933470449,-500.35997869,0.00016438,2]
[353581039,1739933470458,-500.0,0.00016438,2]
[353581040,1739933470470,-500.0,0.00016438,2]
[353581041,1739933470479,-500.0,0.00016438,2]
[353581042,1739933470489,-500.0,0.00016438,2]
[353581043,1739933470498,-500.0,0.00016438,2]
[353581044,1739933470507,-500.0,0.00016438,2]
[353581045,1739933470516,-500.0,0.00016438,2]
[353581046,1739933470526,-500.0,0.00016438,2]
[353581047,1739933470535,-500.0,0.00016438,2]
[353581048,1739933470544,-500.0,0.00016438,2]
[353581049,1739933470553,-4214.92,0.00016438,2]
[353581050,1739933470562,-500.0,0.00016438,2]
[353581051,1739933470571,-3146.21,0.00016438,2]
[353581052,1739933470581,-197.83534979,0.00016438,2]
[353581053,1739933470590,-500.0,0.00016438,2]
[353581054,1739933470599,-500.0,0.00016438,2]
[353581055,1739933470608,-503.51276222,0.00016438,2]
[353581056,1739933470617,-500.0,0.00016438,2]
[353581057,1739933470627,-500.0,0.00016438,2]
[353581058,1739933470636,-500.0,0.00016438,2]
[353581059,1739933470645,-500.0,0.00016438,2]
[353581060,1739933470654,-500.0,0.00016438,2]
[353581061,1739933470663,-500.0,0.00016438,2]
[353581062,1739933470672,-500.0,0.00016438,2]
[353581063,1739933470681,-500.0,0.00016438,2]
[353581064,1739933470690,-627.69,0.00016438,2]
[353581065,1739933470700,-500.0,0.00016438,2]
[353581066,1739933470709,-1242.34,0.00016438,2]
[353581067,1739933470721,-313.60283215,0.00016438,2]
[353581068,1739933470730,-503.19677114,0.00016438,2]
[353581069,1739933470739,-500.0,0.00016438,2]
[353581070,1739933470748,-500.0,0.00016438,2]
[353581071,1739933470758,-2066.27,0.00016438,2]
[353581072,1739933470767,-445.34881801,0.00016438,2]
[353581073,1739933470776,-500.0,0.00016438,2]
[353581074,1739933470785,-500.0,0.00016438,2]
[353581075,1739933470795,-3164.83,0.00016438,2]
[353581076,1739933470804,-500.0,0.00016438,2]
[353581077,1739933470813,-293.72747706,0.00016438,2]
[353581078,1739933470821,-2124.65,0.00016438,2]
[353581079,1739933470830,-500.0,0.00016438,2]
[353581080,1739933470840,-501.7120903,0.00016438,2]
[353581081,1739933470849,-501.59940921,0.00016438,2]
[353581082,1739933470858,-2319.75,0.00016438,2]
[353581083,1739933470867,-500.0,0.00016438,2]
[353581084,1739933470876,-644.49,0.00016438,2]
[353581085,1739933470885,-726.72,0.00016438,2]
[353581086,1739933470895,-500.0,0.00016438,2]
[353581087,1739933470906,-1382.43,0.00016438,2]
[353581088,1739933470915,-500.0,0.00016438,2]
[353581089,1739933470924,-500.0,0.00016438,2]
[353581090,1739933470933,-750.79,0.00016438,2]
[353581091,1739933470943,-500.0,0.00016438,2]
[353581092,1739933470951,-2423.58,0.00016438,2]
[353581093,1739933470962,-500.0,0.00016438,2]
[353581094,1739933470971,-555.02,0.00016438,2]
[353581095,1739933470980,-500.0,0.00016438,2]
[353581096,1739933470989,-500.0,0.00016438,2]
[353581097,1739933470998,-500.0,0.00016438,2]
[353581098,1739933471007,-500.0,0.00016438,2]
[353581099,1739933471017,-500.0,0.00016438,2]
[353581100,1739933471026,-506.25618423,0.00016438,2]
[353581101,1739933471035,-528.14978746,0.00016438,2]
[353581102,1739933471045,-1443.91,0.00016438,2]
[353581103,1739933471054,-500.0,0.00016438,2]
[353581104,1739933471063,-500.0,0.00016438,2]
[353581105,1739933471073,-500.0,0.00016438,2]
[353581106,1739933471082,-500.0,0.00016438,2]
[353581107,1739933471096,-502.93662737,0.00016438,2]
[353581108,1739933471106,-500.0,0.00016438,2]
[353581109,1739933471115,-1480.5,0.00016438,2]
[353581110,1739933471124,-1110.49,0.00016438,2]
[353581111,1739933471133,-2089.3,0.00016438,2]
[353581112,1739933471143,-743.13,0.00016438,2]
[353581113,1739933471151,-500.0,0.00016438,2]
[353581114,1739933471161,-500.0,0.00016438,2]
[353581115,1739933471170,-500.0,0.00016438,2]
[353581116,1739933471180,-500.0,0.00016438,2]
[353581117,1739933471189,-2223.59,0.00016438,2]
[353581118,1739933471199,-500.0,0.00016438,2]
[353581119,1739933471208,-505.27787855,0.00016438,2]
[353581120,1739933471219,-1586.52,0.00016438,2]
[353581121,1739933471228,-500.0,0.00016438,2]
[353581122,1739933471237,-500.0,0.00016438,2]
[353581123,1739933471247,-500.0,0.00016438,2]
[353581124,1739933471256,-500.0,0.00016438,2]
[353581125,1739933471266,-646.39,0.00016438,2]
[353581126,1739933471276,-1157.31,0.00016438,2]
[353581127,1739933471285,-500.0,0.00016438,2]
[353581128,1739933471295,-1125.78,0.00016438,2]
[353581129,1739933471304,-500.0,0.00016438,2]
[353581130,1739933471313,-1050.63,0.00016438,2]
[353581131,1739933471323,-500.0,0.00016438,2]
[353581132,1739933471332,-500.0,0.00016438,2]
[353581133,1739933471341,-1913.37,0.00016438,2]
[353581134,1739933471350,-500.0,0.00016438,2]
[353581135,1739933471359,-501.71325432,0.00016438,2]
[353581136,1739933471369,-502.00558463,0.00016438,2]
[353581137,1739933471378,-1993.86,0.00016438,2]
[353581138,1739933471387,-500.0,0.00016438,2]
[353581139,1739933471396,-506.48946981,0.00016438,2]
[353581140,1739933471405,-504.75902131,0.00016438,2]
[353581141,1739933471414,-500.0,0.00016438,2]
[353581142,1739933471423,-500.0,0.00016438,2]
[353581143,1739933471432,-500.0,0.00016438,2]
[353581144,1739933471441,-500.0,0.00016438,2]
[353581145,1739933471451,-507.88,0.00016438,2]
[353581146,1739933471461,-500.0,0.00016438,2]
[353581147,1739933471470,-500.0,0.00016438,2]
[353581148,1739933471479,-1336.45,0.00016438,2]
[353581149,1739933471487,-508.05270638,0.00016438,2]
[353581150,1739933471496,-500.0,0.00016438,2]
[353581151,1739933471505,-500.0,0.00016438,2]
[353581152,1739933471514,-5786.8,0.00016438,2]
[353581153,1739933471525,-500.0,0.00016438,2]
[353581154,1739933471535,-500.0,0.00016438,2]
[353581155,1739933471544,-2181.97,0.00016438,2]
[353581156,1739933471554,-828.98,0.00016438,2]
[353581157,1739933471563,-500.0,0.00016438,2]
[353581158,1739933471571,-3287.19,0.00016438,2]
[353581159,1739933471580,-502.6629032,0.00016438,2]
[353581160,1739933471589,-2463.32,0.00016438,2]
[353581161,1739933471598,-500.0,0.00016438,2]
[353581162,1739933471609,-500.0,0.00016438,2]
[353581163,1739933471620,-500.0,0.00016438,2]
[353581164,1739933471629,-538.94,0.00016438,2]
[353581165,1739933471638,-500.0,0.00016438,2]
[353581166,1739933471647,-500.0,0.00016438,2]
[353581167,1739933471657,-553.52361305,0.00016438,2]
[353581168,1739933471666,-662.69,0.00016438,2]
[353581169,1739933471675,-500.0,0.00016438,2]
[353581170,1739933471684,-1632.55,0.00016438,2]
[353581171,1739933471693,-500.0,0.00016438,2]
[353581172,1739933471702,-500.0,0.00016438,2]
[353581173,1739933471712,-1653.74,0.00016438,2]
[353581174,1739933471721,-508.32692357,0.00016438,2]
[353581175,1739933471730,-500.0,0.00016438,2]
[353581176,1739933471739,-500.0,0.00016438,2]
[353581177,1739933471747,-500.0,0.00016438,2]
[353581178,1739933471756,-2091.21,0.00016438,2]
[353581179,1739933471765,-505.38809724,0.00016438,2]
[353581180,1739933471774,-524.96763866,0.00016438,2]
[353581181,1739933471783,-1727.1,0.00016438,2]
[353581182,1739933471792,-500.0,0.00016438,2]
[353581183,1739933471801,-1055.17,0.00016438,2]
[353581184,1739933471810,-825.49,0.00016438,2]
[353581185,1739933471819,-606.95,0.00016438,2]
[353581186,1739933471828,-500.0,0.00016438,2]
[353581187,1739933471837,-1235.73,0.00016438,2]
[353581188,1739933471846,-500.0,0.00016438,2]
[353581189,1739933471855,-963.69,0.00016438,2]
[353581190,1739933471864,-613.67803115,0.00016438,2]
[353581191,1739933472023,-2950.36,0.00016438,2]
[353581192,1739933472050,-500.0,0.00016438,2]
[353581193,1739933472059,-500.0,0.00016438,2]
[353581194,1739933472068,-1442.84,0.00016438,2]
[353581195,1739933472078,-724.7,0.00016438,2]
[353581196,1739933472087,-500.0,0.00016438,2]
[353581197,1739933472099,-677.42,0.00016438,2]
[353581198,1739933472109,-2127.04,0.00016438,2]
[353581199,1739933472118,-500.0,0.00016438,2]
[353581200,1739933472127,-500.0,0.00016438,2]
[353581201,1739933472136,-505.76608218,0.00016438,2]
[353581202,1739933472145,-2445.7,0.00016438,2]
[353581203,1739933472155,-2684.3,0.00016438,2]
[353581204,1739933472164,-502.14,0.00016438,2]
[353581205,1739933472173,-624.81,0.00016438,2]
[353581206,1739933472183,-500.0,0.00016438,2]
[353581207,1739933472192,-500.0,0.00016438,2]
[353581208,1739933472201,-941.36,0.00016438,2]
[353581209,1739933472212,-500.0,0.00016438,2]
[353581210,1739933472222,-500.0,0.00016438,2]
[353581211,1739933472231,-646.25,0.00016438,2]
[353581212,1739933472241,-1860.88,0.00016438,2]
[353581213,1739933472251,-2705.06,0.00016438,2]
[353581214,1739933472260,-500.0,0.00016438,2]
[353581215,1739933472269,-418.8227177,0.00016438,2]
[353581216,1739933472278,-500.0,0.00016438,2]
[353581217,1739933472287,-500.0,0.00016438,2]
[353581218,1739933472297,-500.0,0.00016438,2]
[353581219,1739933472306,-1703.27,0.00016438,2]
[353581220,1739933472315,-500.0,0.00016438,2]
[353581221,1739933472325,-760.65,0.00016438,2]
[353581222,1739933472334,-5219.16,0.00016438,2]
[353581223,1739933472344,-1727.45,0.00016438,2]
[353581224,1739933472353,-500.0,0.00016438,2]
[353581225,1739933472362,-500.0,0.00016438,2]
[353581226,1739933472371,-1728.51,0.00016438,2]
[353581227,1739933472381,-505.13,0.00016438,2]
[353581228,1739933472390,-500.0,0.00016438,2]
[353581229,1739933472399,-1014.29,0.00016438,2]
[353581230,1739933472410,-500.0,0.00016438,2]
[353581231,1739933472420,-1761.46,0.00016438,2]
[353581232,1739933472430,-504.57369656,0.00016438,2]
[353581233,1739933472440,-500.0,0.00016438,2]
[353581234,1739933472450,-500.0,0.00016438,2]
[353581235,1739933472459,-500.0,0.00016438,2]
[353581236,1739933472470,-500.0,0.00016438,2]
[353581237,1739933472480,-500.0,0.00016438,2]
[353581238,1739933472489,-1427.81,0.00016438,2]
[353581239,1739933472499,-500.0,0.00016438,2]
[353581240,1739933472508,-500.0,0.00016438,2]
[353581241,1739933472519,-1622.65,0.00016438,2]
[353581242,1739933472529,-2528.39,0.00016438,2]
[353581243,1739933472538,-500.0,0.00016438,2]
[353581244,1739933472548,-873.55,0.00016438,2]
[353581245,1739933472557,-1470.31,0.00016438,2]
[353581246,1739933472567,-500.0,0.00016438,2]
[353581247,1739933472576,-500.0,0.00016438,2]
[353581248,1739933472587,-500.0,0.00016438,2]
[353581249,1739933472596,-680.85,0.00016438,2]
[353581250,1739933472605,-500.0,0.00016438,2]
[353581251,1739933472615,-500.0,0.00016438,2]
[353581252,1739933472624,-2280.03,0.00016438,2]
[353581253,1739933472634,-578.69023526,0.00016438,2]
[353581254,1739933472643,-500.0,0.00016438,2]
[353581255,1739933472652,-2027.46,0.00016438,2]
[353581256,1739933472661,-739.13,0.00016438,2]
[353581257,1739933472671,-739.13,0.00016438,2]
[353581258,1739933472681,-739.13,0.00016438,2]
[353581259,1739933472692,-501.68847582,0.00016438,2]
[353581260,1739933472701,-329.376573,0.00016438,2]
[353581261,1739933472711,-739.13,0.00016438,2]
[353581262,1739933472721,-739.13,0.00016438,2]
[353581263,1739933472730,-867.89,0.00016438,2]
[353581264,1739933472739,-739.13,0.00016438,2]
[353581265,1739933472749,-739.13,0.00016438,2]
[353581266,1739933472758,-2562.96,0.00016438,2]
[353581267,1739933472767,-739.13,0.00016438,2]
[353581268,1739933472776,-739.13,0.00016438,2]
[353581269,1739933472785,-739.13,0.00016438,2]
[353581270,1739933472795,-739.13,0.00016438,2]
[353581271,1739933472805,-506.47329472,0.00016438,2]
[353581272,1739933472814,-739.13,0.00016438,2]
[353581273,1739933472824,-739.13,0.00016438,2]
[353581274,1739933472834,-739.13,0.00016438,2]
[353581275,1739933472844,-500.0,0.00016438,2]
[353581276,1739933472854,-739.13,0.00016438,2]
[353581277,1739933472863,-739.13,0.00016438,2]
[353581278,1739933472873,-500.0,0.00016438,2]
[353581279,1739933472883,-739.13,0.00016438,2]
[353581280,1739933472892,-500.0,0.00016438,2]
[353581281,1739933472902,-739.13,0.00016438,2]
[353581282,1739933472912,-739.13,0.00016438,2]
[353581283,1739933472921,-739.13,0.00016438,2]
[353581284,1739933472931,-739.13,0.00016438,2]
[353581285,1739933472941,-739.13,0.00016438,2]
[353581286,1739933472950,-739.13,0.00016438,2]
[353581287,1739933472960,-1929.41,0.00016438,2]
[353581288,1739933472972,-739.26375463,0.00016438,2]
[353581289,1739933472982,-37.41841667,0.00016438,2]
[353581290,1739933473583,-462.58158333,0.00016438,2]
[353581291,1739933473592,-500.0,0.00016438,2]
[353581292,1739933473602,-500.0,0.00016438,2]
[353581293,1739933473611,-500.0,0.00016438,2]
[353581294,1739933473621,-928.04,0.00016438,2]
[353581295,1739933473630,-500.0,0.00016438,2]
[353581296,1739933473639,-500.0,0.00016438,2]
[353581297,1739933473648,-500.0,0.00016438,2]
[353581298,1739933473657,-500.0,0.00016438,2]
[353581299,1739933473666,-3522.7,0.00016438,2]
[353581300,1739933473675,-500.0,0.00016438,2]
[353581301,1739933473684,-500.0,0.00016438,2]
[353581302,1739933473694,-500.0,0.00016438,2]
[353581303,1739933473703,-500.0,0.00016438,2]
[353581304,1739933473712,-503.8863851,0.00016438,2]
[353581305,1739933473722,-1731.07,0.00016438,2]
[353581306,1739933473731,-500.0,0.00016438,2]
[353581307,1739933473741,-508.09185657,0.00016438,2]
[353581308,1739933473749,-500.0,0.00016438,2]
[353581309,1739933473758,-500.0,0.00016438,2]
[353581310,1739933473768,-500.0,0.00016438,2]
[353581311,1739933473778,-1744.92,0.00016438,2]
[353581312,1739933473787,-597.17358692,0.00016438,2]
[353581313,1739933473797,-139.88150286,0.00016438,2]
[353581314,1739933473842,-360.11849714,0.00016438,2]
[353581315,1739933473852,-305.88150286,0.00016438,2]
[353581316,1739933473863,-194.11849714,0.00016438,2]
[353581317,1739933473872,-505.18918308,0.00016438,2]
[353581318,1739933473881,-536.16352585,0.00016438,2]
[353581319,1739933473892,-204.42647415,0.00016438,2]
[353581320,1739933473901,-500.83983193,0.00016438,2]
[353581321,1739933473912,-500.0,0.00016438,2]
[353581322,1739933473921,-500.0,0.00016438,2]
[353581323,1739933473930,-500.0,0.00016438,2]
[353581324,1739933473939,-513.95844398,0.00016438,2]
[353581325,1739933473948,-500.0,0.00016438,2]
[353581326,1739933473958,-500.0,0.00016438,2]
[353581327,1739933473967,-500.0,0.00016438,2]
[353581328,1739933473976,-394.0021779,0.00016438,2]
[353581329,1739933473988,-105.9978221,0.00016438,2]
[353581330,1739933473997,-283.08471339,0.00016438,2]
[353581331,1739933474017,-1414.81528661,0.00016438,2]
[353581332,1739933474027,-2495.75,0.00016438,2]
[353581333,1739933474036,-501.36384912,0.00016438,2]
[353581334,1739933474045,-500.0,0.00016438,2]
[353581335,1739933474055,-306.31834998,0.00016438,2]
[353581336,1739933474259,-500.0,0.00016438,2]
[353581337,1739933474269,-1784.23,0.00016438,2]
[353581338,1739933474278,-500.0,0.00016438,2]
[353581339,1739933474287,-500.0,0.00016438,2]
[353581340,1739933474297,-505.07669601,0.00016438,2]
[353581341,1739933474306,-500.0,0.00016438,2]
[353581342,1739933474315,-500.0,0.00016438,2]
[353581343,1739933474325,-500.0,0.00016438,2]
[353581344,1739933474334,-1327.47,0.00016438,2]
[353581345,1739933474344,-500.0,0.00016438,2]
[353581346,1739933474353,-500.0,0.00016438,2]
[353581347,1739933474363,-1379.53,0.00016438,2]
[353581348,1739933474372,-500.0,0.00016438,2]
[353581349,1739933474382,-500.0,0.00016438,2]
[353581350,1739933474391,-500.0,0.00016438,2]
[353581351,1739933474400,-500.0,0.00016438,2]
[353581352,1739933474409,-500.0,0.00016438,2]
[353581353,1739933474419,-993.26,0.00016438,2]
[353581354,1739933474428,-500.0,0.00016438,2]
[353581355,1739933474437,-501.32315157,0.00016438,2]
[353581356,1739933474447,-500.0,0.00016438,2]
[353581357,1739933474456,-500.0,0.00016438,2]
[353581358,1739933474467,-500.0,0.00016438,2]
[353581359,1739933474476,-550.94,0.00016438,2]
[353581360,1739933474485,-500.0,0.00016438,2]
[353581361,1739933474494,-500.0,0.00016438,2]
[353581362,1739933474504,-500.0,0.00016438,2]
[353581363,1739933474513,-2779.68,0.00016438,2]
[353581364,1739933474522,-500.0,0.00016438,2]
[353581365,1739933474531,-500.0,0.00016438,2]
[353581366,1739933474540,-775.63,0.00016438,2]
[353581367,1739933474549,-500.0,0.00016438,2]
[353581368,1739933474558,-500.0,0.00016438,2]
[353581369,1739933474567,-500.0,0.00016438,2]
[353581370,1739933474577,-500.0,0.00016438,2]
[353581371,1739933474587,-500.0,0.00016438,2]
[353581372,1739933474598,-500.0,0.00016438,2]
[353581373,1739933474608,-500.0,0.00016438,2]
[353581374,1739933474618,-1836.98690688,0.00016438,2]
[353581375,1739933474631,-514.74309312,0.00016438,2]
[353581376,1739933474640,-282.4232522,0.00016438,2]
[353581377,1739933474658,-217.5767478,0.00016438,2]
[353581378,1739933474667,-1731.08,0.00016438,2]
[353581379,1739933474677,-500.0,0.00016438,2]
[353581380,1739933474686,-500.0,0.00016438,2]
[353581381,1739933474699,-500.0,0.00016438,2]
[353581382,1739933474708,-505.8931202,0.00016438,2]
[353581383,1739933474720,-100.88193206,0.00016438,2]
[353581384,1739933474786,-399.11806794,0.00016438,2]
[353581385,1739933474795,-500.0,0.00016438,2]
[353581386,1739933474805,-500.0,0.00016438,2]
[353581387,1739933474815,-1667.55,0.00016438,2]
[353581388,1739933474824,-2165.31,0.00016438,2]
[353581389,1739933474834,-500.0,0.00016438,2]
[353581390,1739933474843,-738.28,0.00016438,2]
[353581391,1739933474853,-1408.62,0.00016438,2]
[353581392,1739933474863,-500.0,0.00016438,2]
[353581393,1739933474873,-3792.7,0.00016438,2]
[353581394,1739933474882,-500.0,0.00016438,2]
[353581395,1739933474892,-500.0,0.00016438,2]
[353581396,1739933474902,-223.05379447,0.00016438,2]
[353581397,1739933474911,-500.0,0.00016438,2]
[353581398,1739933474921,-754.44,0.00016438,2]
[353581399,1739933474931,-500.0,0.00016438,2]
[353581400,1739933474940,-500.0,0.00016438,2]
[353581401,1739933474950,-1498.26,0.00016438,2]
[353581402,1739933474959,-500.0,0.00016438,2]
[353581403,1739933474972,-500.0,0.00016438,2]
[353581404,1739933474981,-1234.79,0.00016438,2]
[353581405,1739933474990,-505.72806966,0.00016438,2]
[353581406,1739933475000,-661.87,0.00016438,2]
[353581407,1739933475010,-500.0,0.00016438,2]
[353581408,1739933475019,-500.0,0.00016438,2]
[353581409,1739933475028,-500.0,0.00016438,2]
[353581410,1739933475039,-500.0,0.00016438,2]
[353581411,1739933475049,-193.91572945,0.00016438,2]
[353581412,1739933475058,-2401.5,0.00016438,2]
[353581413,1739933475068,-101.10885876,0.00016438,2]
[353581414,1739933475085,-1323.15114124,0.00016438,2]
[353581415,1739933475095,-500.0,0.00016438,2]
[353581416,1739933475105,-500.0,0.00016438,2]
[353581417,1739933475114,-500.0,0.00016438,2]
[353581418,1739933475124,-2470.21,0.00016438,2]
[353581419,1739933475134,-1773.32415948,0.00016438,2]
[353581420,1739933475164,-299.51584052,0.00016438,2]
[353581421,1739933475173,-320.58415948,0.00016438,2]